[Event "Early-Titled-Tuesday-Blitz-April-16-2024"]
[Site "Chess.com"]
[Date "2024.04.16"]
[Round "11"]
[White "Herzog2012"]
[Black "kacperkarwowski"]
[Result "1-0"]
[WhiteElo "2536"]
[BlackElo "2498"]
[TimeControl "180+1"]
[EndTime "10:10:29 PDT"]
[Termination "Herzog2012 won on time"]

1. e4 {[%clk 0:03:00.9]} 1... c6 {[%clk 0:02:54.1]} 2. d4 {[%clk 0:03:00.2]}
2... d6 {[%clk 0:02:53.2]} 3. a4 {[%clk 0:02:53.4]} 3... h6 {[%clk 0:02:51.8]}
4. Nc3 {[%clk 0:02:48.3]} 4... g5 {[%clk 0:02:43.2]} 5. Be3 {[%clk 0:02:33]}
5... Bg7 {[%clk 0:02:40.5]} 6. f3 {[%clk 0:02:31.6]} 6... Nd7 {[%clk 0:02:33.6]}
7. h4 {[%clk 0:02:30.4]} 7... Nf8 {[%clk 0:02:20.3]} 8. a5 {[%clk 0:02:09.6]}
8... Ne6 {[%clk 0:01:56.7]} 9. Bc4 {[%clk 0:02:02.7]} 9... Nf6 {[%clk 0:01:52]}
10. Bxe6 {[%clk 0:01:59.2]} 10... Bxe6 {[%clk 0:01:50.3]} 11. hxg5 {[%clk
0:01:58.4]} 11... hxg5 {[%clk 0:01:51.2]} 12. Rxh8+ {[%clk 0:01:55.8]} 12...
Bxh8 {[%clk 0:01:52.1]} 13. Bxg5 {[%clk 0:01:55.2]} 13... d5 {[%clk 0:01:27.5]}
14. e5 {[%clk 0:01:41.4]} 14... Nd7 {[%clk 0:01:20.1]} 15. Nge2 {[%clk
0:01:40.3]} 15... c5 {[%clk 0:01:06.4]} 16. f4 {[%clk 0:01:38.5]} 16... Qc7
{[%clk 0:00:39.5]} 17. Qd3 {[%clk 0:01:20.8]} 17... cxd4 {[%clk 0:00:18.5]} 18.
Nxd4 {[%clk 0:01:19.2]} 18... Nc5 {[%clk 0:00:11.3]} 19. Qb5+ {[%clk 0:01:13.7]}
19... Bd7 {[%clk 0:00:07.6]} 20. Nxd5 {[%clk 0:01:13.6]} 20... Qc8 {[%clk
0:00:02]} 21. Qb4 {[%clk 0:01:07.9]} 1-0

[Event "Early-Titled-Tuesday-Blitz-April-16-2024"]
[Site "Chess.com"]
[Date "2024.04.16"]
[Round "11"]
[White "KubaGepard"]
[Black "NigiriSushies"]
[Result "1-0"]
[WhiteElo "2585"]
[BlackElo "2434"]
[TimeControl "180+1"]
[EndTime "10:10:32 PDT"]
[Termination "KubaGepard won by checkmate"]

1. d4 {[%clk 0:03:00.9]} 1... Nf6 {[%clk 0:02:58.8]} 2. Nf3 {[%clk 0:03:00.9]}
2... d5 {[%clk 0:02:55.9]} 3. c4 {[%clk 0:03:01.3]} 3... c6 {[%clk 0:02:55.9]}
4. e3 {[%clk 0:03:01.2]} 4... Bf5 {[%clk 0:02:54.5]} 5. Bd3 {[%clk 0:03:01.5]}
5... Bxd3 {[%clk 0:02:48.4]} 6. Qxd3 {[%clk 0:03:02.4]} 6... e6 {[%clk
0:02:47.6]} 7. O-O {[%clk 0:03:00.5]} 7... Nbd7 {[%clk 0:02:47.4]} 8. Nbd2
{[%clk 0:03:00.1]} 8... Bd6 {[%clk 0:02:47.4]} 9. Rd1 {[%clk 0:02:59.7]} 9...
O-O {[%clk 0:02:47]} 10. e4 {[%clk 0:03:00.1]} 10... dxe4 {[%clk 0:02:47.1]} 11.
Nxe4 {[%clk 0:03:01]} 11... Nxe4 {[%clk 0:02:48]} 12. Qxe4 {[%clk 0:03:01.9]}
12... Nf6 {[%clk 0:02:48.8]} 13. Qe2 {[%clk 0:03:01.6]} 13... Qe7 {[%clk
0:02:48.8]} 14. b3 {[%clk 0:02:57.7]} 14... Rfe8 {[%clk 0:02:46.6]} 15. Bb2
{[%clk 0:02:57.1]} 15... Rad8 {[%clk 0:02:45.3]} 16. h3 {[%clk 0:02:55.8]} 16...
h6 {[%clk 0:02:45.1]} 17. Rd3 {[%clk 0:02:52.1]} 17... Nh5 {[%clk 0:02:39]} 18.
g3 {[%clk 0:02:46.3]} 18... c5 {[%clk 0:02:26.9]} 19. Rad1 {[%clk 0:02:41]}
19... cxd4 {[%clk 0:02:25.7]} 20. Nxd4 {[%clk 0:02:41.4]} 20... Bc5 {[%clk
0:02:21]} 21. Qxh5 {[%clk 0:02:40.1]} 21... Qf6 {[%clk 0:02:00.2]} 22. Qe2
{[%clk 0:02:33.4]} 22... e5 {[%clk 0:01:58]} 23. Nf3 {[%clk 0:02:32.1]} 23...
Rxd3 {[%clk 0:01:53.7]} 24. Rxd3 {[%clk 0:02:33]} 24... Qg6 {[%clk 0:01:49.1]}
25. Nxe5 {[%clk 0:02:29.4]} 25... Qf5 {[%clk 0:01:44.4]} 26. Rf3 {[%clk
0:02:24.7]} 26... Qb1+ {[%clk 0:01:33.3]} 27. Kg2 {[%clk 0:02:23]} 27... Qxa2
{[%clk 0:01:33.8]} 28. Qd3 {[%clk 0:02:18.4]} 28... Qxb2 {[%clk 0:01:28.2]} 29.
Nxf7 {[%clk 0:02:06.1]} 29... Re2 {[%clk 0:01:01]} 30. Nxh6+ {[%clk 0:01:46.9]}
30... gxh6 {[%clk 0:00:57.2]} 31. Qd5+ {[%clk 0:01:46.9]} 31... Kg7 {[%clk
0:00:49.7]} 32. Qxc5 {[%clk 0:01:42.7]} 32... Qe5 {[%clk 0:00:39.8]} 33. Qxa7
{[%clk 0:01:38.1]} 33... Qe4 {[%clk 0:00:37]} 34. Qa1+ {[%clk 0:01:29.2]} 34...
Kg6 {[%clk 0:00:34.3]} 35. Qf6+ {[%clk 0:01:28.2]} 35... Kh7 {[%clk 0:00:33.6]}
36. Qf5+ {[%clk 0:01:27.2]} 36... Qxf5 {[%clk 0:00:33.7]} 37. Rxf5 {[%clk
0:01:28.1]} 37... Re7 {[%clk 0:00:33.8]} 38. Rb5 {[%clk 0:01:29]} 38... Kg6
{[%clk 0:00:33.6]} 39. g4 {[%clk 0:01:27.9]} 39... Rf7 {[%clk 0:00:31.1]} 40.
Rb6+ {[%clk 0:01:27.7]} 40... Kg5 {[%clk 0:00:31]} 41. Kg3 {[%clk 0:01:26.6]}
41... h5 {[%clk 0:00:27.3]} 42. h4# {[%clk 0:01:23]} 1-0

[Event "Early-Titled-Tuesday-Blitz-April-16-2024"]
[Site "Chess.com"]
[Date "2024.04.16"]
[Round "11"]
[White "Darius321"]
[Black "Ramu_K_FM_FT"]
[Result "1-0"]
[WhiteElo "2306"]
[BlackElo "2145"]
[TimeControl "180+1"]
[EndTime "10:10:37 PDT"]
[Termination "Darius321 won by resignation"]

1. e4 {[%clk 0:02:59]} 1... c5 {[%clk 0:02:56.6]} 2. d4 {[%clk 0:02:58]} 2...
cxd4 {[%clk 0:02:54.4]} 3. c3 {[%clk 0:02:58.3]} 3... d3 {[%clk 0:02:52.7]} 4.
c4 {[%clk 0:02:57.3]} 4... d6 {[%clk 0:02:51.7]} 5. Nc3 {[%clk 0:02:57.2]} 5...
g6 {[%clk 0:02:49.2]} 6. h3 {[%clk 0:02:57.3]} 6... Bg7 {[%clk 0:02:48.9]} 7.
Bxd3 {[%clk 0:02:56.4]} 7... Nf6 {[%clk 0:02:48.3]} 8. Nf3 {[%clk 0:02:56.6]}
8... O-O {[%clk 0:02:47.1]} 9. O-O {[%clk 0:02:57.2]} 9... Nc6 {[%clk
0:02:46.2]} 10. Bg5 {[%clk 0:02:57.1]} 10... Be6 {[%clk 0:02:44.7]} 11. Nd5
{[%clk 0:02:57.2]} 11... Bxd5 {[%clk 0:02:40]} 12. exd5 {[%clk 0:02:58.1]} 12...
Nb8 {[%clk 0:02:37.3]} 13. Qd2 {[%clk 0:02:57.3]} 13... Nbd7 {[%clk 0:02:36.6]}
14. Bh6 {[%clk 0:02:56.9]} 14... Rc8 {[%clk 0:02:33.9]} 15. Rae1 {[%clk
0:02:51.5]} 15... Nc5 {[%clk 0:02:27]} 16. Bxg7 {[%clk 0:02:47.5]} 16... Kxg7
{[%clk 0:02:26.4]} 17. b3 {[%clk 0:02:47.4]} 17... a5 {[%clk 0:02:19.6]} 18. Nd4
{[%clk 0:02:43]} 18... Re8 {[%clk 0:02:12.1]} 19. f4 {[%clk 0:02:41.1]} 19... e5
{[%clk 0:01:58.8]} 20. dxe6 {[%clk 0:02:21.6]} 20... fxe6 {[%clk 0:01:48.7]} 21.
Bb1 {[%clk 0:02:02.7]} 21... Qb6 {[%clk 0:01:41.1]} 22. Kh2 {[%clk 0:01:55.4]}
22... e5 {[%clk 0:01:33.6]} 23. Nb5 {[%clk 0:01:50.7]} 23... Rcd8 {[%clk
0:01:26.6]} 24. Qc3 {[%clk 0:01:43]} 24... exf4 {[%clk 0:01:02.8]} 25. Rxe8
{[%clk 0:01:39.5]} 25... Rxe8 {[%clk 0:01:01.9]} 26. Rxf4 {[%clk 0:01:39.5]}
26... Rf8 {[%clk 0:01:00]} 27. Qd4 {[%clk 0:01:27.2]} 27... d5 {[%clk
0:00:55.1]} 28. Nc3 {[%clk 0:00:48.1]} 28... Ne6 {[%clk 0:00:52]} 29. Qxb6
{[%clk 0:00:45.6]} 29... Nxf4 {[%clk 0:00:51.6]} 30. Qc7+ {[%clk 0:00:45]} 30...
Rf7 {[%clk 0:00:50.7]} 31. Qxf4 {[%clk 0:00:44.9]} 31... dxc4 {[%clk 0:00:49.4]}
32. Qxc4 {[%clk 0:00:43.9]} 1-0

[Event "Early-Titled-Tuesday-Blitz-April-16-2024"]
[Site "Chess.com"]
[Date "2024.04.16"]
[Round "11"]
[White "Manukyan_Artak"]
[Black "ViktoriyaTarasova"]
[Result "1-0"]
[WhiteElo "2507"]
[BlackElo "2369"]
[TimeControl "180+1"]
[EndTime "10:10:39 PDT"]
[Termination "Manukyan_Artak won on time"]

1. e4 {[%clk 0:03:00.9]} 1... e5 {[%clk 0:02:58.8]} 2. Nf3 {[%clk 0:02:59.6]}
2... Nc6 {[%clk 0:02:58.6]} 3. d4 {[%clk 0:03:00.1]} 3... exd4 {[%clk
0:02:57.5]} 4. Nxd4 {[%clk 0:03:01]} 4... Nf6 {[%clk 0:02:57.5]} 5. Nxc6 {[%clk
0:03:00.9]} 5... bxc6 {[%clk 0:02:57.2]} 6. e5 {[%clk 0:03:01.4]} 6... Qe7
{[%clk 0:02:57.4]} 7. Qe2 {[%clk 0:03:01]} 7... Nd5 {[%clk 0:02:57.7]} 8. c4
{[%clk 0:03:01.6]} 8... Nb6 {[%clk 0:02:57.8]} 9. b3 {[%clk 0:03:01.4]} 9... a5
{[%clk 0:02:56.1]} 10. a4 {[%clk 0:02:59.8]} 10... Qe6 {[%clk 0:02:56.4]} 11.
Nc3 {[%clk 0:02:58]} 11... Bb4 {[%clk 0:02:55.7]} 12. Bb2 {[%clk 0:02:57.5]}
12... O-O {[%clk 0:02:56.3]} 13. O-O-O {[%clk 0:02:52.7]} 13... d5 {[%clk
0:02:56.5]} 14. exd6 {[%clk 0:02:52.7]} 14... cxd6 {[%clk 0:02:54.7]} 15. f4
{[%clk 0:02:44.6]} 15... Qg6 {[%clk 0:02:52.5]} 16. h4 {[%clk 0:02:37.9]} 16...
Bg4 {[%clk 0:02:52.2]} 17. Qd3 {[%clk 0:02:27.7]} 17... Bxd1 {[%clk 0:02:49.7]}
18. Qxd1 {[%clk 0:02:27.7]} 18... d5 {[%clk 0:02:32.5]} 19. Bd3 {[%clk
0:02:21.6]} 19... Qg3 {[%clk 0:02:31.9]} 20. Ne2 {[%clk 0:02:14.1]} 20... Qe3+
{[%clk 0:02:31.4]} 21. Kb1 {[%clk 0:02:09.7]} 21... dxc4 {[%clk 0:02:31.7]} 22.
bxc4 {[%clk 0:02:06.8]} 22... Rad8 {[%clk 0:02:21]} 23. Rh3 {[%clk 0:02:03.9]}
23... Qe7 {[%clk 0:02:03.1]} 24. Rg3 {[%clk 0:01:58.1]} 24... f6 {[%clk
0:02:02]} 25. h5 {[%clk 0:01:49.7]} 25... Rf7 {[%clk 0:01:39.7]} 26. h6 {[%clk
0:01:45.5]} 26... g6 {[%clk 0:01:39.3]} 27. f5 {[%clk 0:01:41.3]} 27... g5
{[%clk 0:01:29.7]} 28. Nf4 {[%clk 0:01:30.6]} 28... Bd6 {[%clk 0:01:22.4]} 29.
Ng6 {[%clk 0:01:23.6]} 29... hxg6 {[%clk 0:00:59.8]} 30. fxg6 {[%clk 0:01:24.5]}
30... Bxg3 {[%clk 0:01:00.1]} 31. gxf7+ {[%clk 0:01:22.5]} 31... Kh8 {[%clk
0:00:40.2]} 32. Qh5 {[%clk 0:01:17.3]} 1-0

[Event "Early-Titled-Tuesday-Blitz-April-16-2024"]
[Site "Chess.com"]
[Date "2024.04.16"]
[Round "11"]
[White "KVAIDAN"]
[Black "ReinisUz"]
[Result "1-0"]
[WhiteElo "2386"]
[BlackElo "2394"]
[TimeControl "180+1"]
[EndTime "10:10:40 PDT"]
[Termination "KVAIDAN won by resignation"]

1. f4 {[%clk 0:03:00.9]} 1... c5 {[%clk 0:02:56.9]} 2. Nf3 {[%clk 0:03:01]} 2...
Nc6 {[%clk 0:02:56.7]} 3. d3 {[%clk 0:03:01.4]} 3... g6 {[%clk 0:02:56.8]} 4. e4
{[%clk 0:03:00.3]} 4... Bg7 {[%clk 0:02:57.4]} 5. Be2 {[%clk 0:03:00.8]} 5... d5
{[%clk 0:02:57.5]} 6. O-O {[%clk 0:03:01.4]} 6... dxe4 {[%clk 0:02:57.1]} 7.
dxe4 {[%clk 0:03:01.3]} 7... Qxd1 {[%clk 0:02:57.6]} 8. Rxd1 {[%clk 0:03:01.1]}
8... Bg4 {[%clk 0:02:53.3]} 9. e5 {[%clk 0:02:58.8]} 9... Rd8 {[%clk 0:02:47.5]}
10. Rxd8+ {[%clk 0:02:57.9]} 10... Kxd8 {[%clk 0:02:48.4]} 11. c3 {[%clk
0:02:58.1]} 11... Kc7 {[%clk 0:02:46.8]} 12. Be3 {[%clk 0:02:57.6]} 12... b6
{[%clk 0:02:46.2]} 13. Na3 {[%clk 0:02:56.3]} 13... Kb7 {[%clk 0:02:38.4]} 14.
h3 {[%clk 0:02:53.4]} 14... Bd7 {[%clk 0:02:29.2]} 15. Rd1 {[%clk 0:02:52.8]}
15... Be8 {[%clk 0:02:28.8]} 16. Nd2 {[%clk 0:02:46.9]} 16... f6 {[%clk
0:02:27.2]} 17. Ndc4 {[%clk 0:02:40]} 17... fxe5 {[%clk 0:02:25.2]} 18. Bf3
{[%clk 0:02:40.1]} 18... exf4 {[%clk 0:02:14]} 19. Bxf4 {[%clk 0:02:39.5]} 19...
a6 {[%clk 0:02:00.6]} 20. Ne5 {[%clk 0:02:32.7]} 20... Nf6 {[%clk 0:01:17.6]}
21. Rd8 {[%clk 0:02:26.7]} 21... Rf8 {[%clk 0:01:04]} 22. Nac4 {[%clk 0:02:14]}
22... Ne4 {[%clk 0:00:43.9]} 23. Rxe8 {[%clk 0:01:33]} 23... Rxf4 {[%clk
0:00:21.5]} 24. Nxc6 {[%clk 0:01:32.6]} 24... Kxc6 {[%clk 0:00:16.4]} 25. Rxe7
{[%clk 0:01:32.5]} 25... Bf6 {[%clk 0:00:15.6]} 26. Rxe4 {[%clk 0:01:31.7]}
26... Rxe4 {[%clk 0:00:15.9]} 27. Bxe4+ {[%clk 0:01:31.8]} 27... Kc7 {[%clk
0:00:16.3]} 28. Kf2 {[%clk 0:01:28]} 28... b5 {[%clk 0:00:16.8]} 29. Ne3 {[%clk
0:01:26.4]} 29... Kd6 {[%clk 0:00:17.5]} 30. Ke2 {[%clk 0:01:25.8]} 30... b4
{[%clk 0:00:17.9]} 31. Kd3 {[%clk 0:01:25]} 31... a5 {[%clk 0:00:14]} 32. Nc4+
{[%clk 0:01:24.8]} 32... Kc7 {[%clk 0:00:14.6]} 33. Nxa5 {[%clk 0:01:24.8]}
33... Kb6 {[%clk 0:00:15.4]} 34. Nb3 {[%clk 0:01:23.5]} 34... Kb5 {[%clk
0:00:16.3]} 35. Bd5 {[%clk 0:01:23.2]} 35... Kb6 {[%clk 0:00:14.3]} 36. Kc4
{[%clk 0:01:19.3]} 36... bxc3 {[%clk 0:00:14.1]} 37. bxc3 {[%clk 0:01:19.4]}
37... Be7 {[%clk 0:00:15]} 38. a4 {[%clk 0:01:18.4]} 1-0

[Event "Early-Titled-Tuesday-Blitz-April-16-2024"]
[Site "Chess.com"]
[Date "2024.04.16"]
[Round "11"]
[White "Zhigalko_Sergei"]
[Black "SpeedofLight0"]
[Result "1/2-1/2"]
[WhiteElo "2936"]
[BlackElo "3067"]
[TimeControl "180+1"]
[EndTime "10:10:42 PDT"]
[Termination "Game drawn by repetition"]

1. e4 {[%clk 0:03:00.9]} 1... Nc6 {[%clk 0:03:00.1]} 2. Nf3 {[%clk 0:03:00.9]}
2... d6 {[%clk 0:03:00.4]} 3. d4 {[%clk 0:03:01.2]} 3... Nf6 {[%clk 0:03:01.1]}
4. Nc3 {[%clk 0:02:59.9]} 4... g6 {[%clk 0:03:01.7]} 5. Bb5 {[%clk 0:02:59.8]}
5... a6 {[%clk 0:03:01.5]} 6. Bxc6+ {[%clk 0:02:59.6]} 6... bxc6 {[%clk
0:03:02.4]} 7. O-O {[%clk 0:02:56.3]} 7... Bg7 {[%clk 0:03:03]} 8. h3 {[%clk
0:02:55.1]} 8... O-O {[%clk 0:03:03.6]} 9. Re1 {[%clk 0:02:55.4]} 9... Nd7
{[%clk 0:03:03.5]} 10. Be3 {[%clk 0:02:36.2]} 10... a5 {[%clk 0:03:03.7]} 11.
Qd2 {[%clk 0:02:35.2]} 11... Nb6 {[%clk 0:03:02.5]} 12. b3 {[%clk 0:02:33.6]}
12... a4 {[%clk 0:03:02.6]} 13. Bh6 {[%clk 0:02:33]} 13... f6 {[%clk 0:02:53.6]}
14. Bxg7 {[%clk 0:02:31.8]} 14... Kxg7 {[%clk 0:02:54.5]} 15. Rad1 {[%clk
0:02:10.2]} 15... Qe8 {[%clk 0:02:47.1]} 16. e5 {[%clk 0:02:07.6]} 16... fxe5
{[%clk 0:02:40.8]} 17. dxe5 {[%clk 0:02:06.3]} 17... Rxf3 {[%clk 0:02:39]} 18.
gxf3 {[%clk 0:01:55.5]} 18... d5 {[%clk 0:02:38.8]} 19. e6 {[%clk 0:01:50.8]}
19... Qf8 {[%clk 0:02:37.3]} 20. Qd4+ {[%clk 0:01:37.8]} 20... Qf6 {[%clk
0:02:35.5]} 21. Qc5 {[%clk 0:01:30.9]} 21... Bb7 {[%clk 0:01:56]} 22. Re3 {[%clk
0:01:05.9]} 22... Rf8 {[%clk 0:01:46.4]} 23. Nxa4 {[%clk 0:00:56.7]} 23... Nxa4
{[%clk 0:01:43.3]} 24. bxa4 {[%clk 0:00:55.9]} 24... Qg5+ {[%clk 0:01:36.5]} 25.
Kh2 {[%clk 0:00:40.3]} 25... Rf4 {[%clk 0:01:35.7]} 26. Rg1 {[%clk 0:00:32.6]}
26... Qh4 {[%clk 0:01:31.8]} 27. Rb3 {[%clk 0:00:22.2]} 27... Ba6 {[%clk
0:01:28.8]} 28. Rg4 {[%clk 0:00:20.6]} 28... Qf6 {[%clk 0:01:25.4]} 29. Rxf4
{[%clk 0:00:08.3]} 29... Qxf4+ {[%clk 0:01:26.3]} 30. Kg2 {[%clk 0:00:08.2]}
30... Qg5+ {[%clk 0:01:24.1]} 31. Kh2 {[%clk 0:00:04.7]} 31... Qf4+ {[%clk
0:01:11.4]} 32. Kg2 {[%clk 0:00:05]} 32... Qg5+ {[%clk 0:01:11.1]} 33. Kh2
{[%clk 0:00:04.2]} 33... Qf4+ {[%clk 0:01:11.5]} 1/2-1/2

[Event "Early-Titled-Tuesday-Blitz-April-16-2024"]
[Site "Chess.com"]
[Date "2024.04.16"]
[Round "11"]
[White "MathiasWomacka"]
[Black "ilqar_74"]
[Result "0-1"]
[WhiteElo "2478"]
[BlackElo "2756"]
[TimeControl "180+1"]
[EndTime "10:10:43 PDT"]
[Termination "ilqar_74 won on time"]

1. e4 {[%clk 0:03:00.9]} 1... c5 {[%clk 0:02:59.8]} 2. Nf3 {[%clk 0:03:00.4]}
2... d6 {[%clk 0:02:58.5]} 3. d4 {[%clk 0:03:00.6]} 3... cxd4 {[%clk 0:02:59.4]}
4. Nxd4 {[%clk 0:03:00.7]} 4... Nf6 {[%clk 0:02:59.3]} 5. Nc3 {[%clk 0:03:01.2]}
5... e5 {[%clk 0:03:00]} 6. Bb5+ {[%clk 0:02:59.1]} 6... Nbd7 {[%clk 0:02:59.7]}
7. Nf5 {[%clk 0:02:58.3]} 7... a6 {[%clk 0:02:58.6]} 8. Bxd7+ {[%clk 0:02:57.4]}
8... Qxd7 {[%clk 0:02:59.5]} 9. Bg5 {[%clk 0:02:45.8]} 9... Nxe4 {[%clk
0:02:59.4]} 10. Nxg7+ {[%clk 0:02:43]} 10... Bxg7 {[%clk 0:02:59]} 11. Nxe4
{[%clk 0:02:43.9]} 11... O-O {[%clk 0:02:58.9]} 12. Nf6+ {[%clk 0:02:33.3]}
12... Bxf6 {[%clk 0:02:57.7]} 13. Bxf6 {[%clk 0:02:34.2]} 13... Qe6 {[%clk
0:02:53.1]} 14. Qf3 {[%clk 0:02:28.1]} 14... Qf5 {[%clk 0:02:52.5]} 15. Qxf5
{[%clk 0:02:25.5]} 15... Bxf5 {[%clk 0:02:52.4]} 16. O-O-O {[%clk 0:02:25.7]}
16... Rfc8 {[%clk 0:02:41.4]} 17. c3 {[%clk 0:02:16.2]} 17... Rc6 {[%clk
0:02:35.5]} 18. Be7 {[%clk 0:02:09.9]} 18... Re8 {[%clk 0:02:33.4]} 19. Bxd6
{[%clk 0:02:08.6]} 19... f6 {[%clk 0:02:31]} 20. Ba3 {[%clk 0:01:43.8]} 20...
Be6 {[%clk 0:02:29.6]} 21. Kb1 {[%clk 0:01:40.8]} 21... b5 {[%clk 0:02:30.1]}
22. Rd2 {[%clk 0:01:35.8]} 22... a5 {[%clk 0:02:30]} 23. Rhd1 {[%clk 0:01:32.8]}
23... Kf7 {[%clk 0:02:29.6]} 24. Rd6 {[%clk 0:01:31.7]} 24... Rec8 {[%clk
0:02:29.3]} 25. Rxc6 {[%clk 0:01:29.5]} 25... Rxc6 {[%clk 0:02:30.2]} 26. Rd6
{[%clk 0:01:23.7]} 26... Rc8 {[%clk 0:02:26.8]} 27. Rb6 {[%clk 0:01:18.7]} 27...
b4 {[%clk 0:02:26.1]} 28. Bxb4 {[%clk 0:01:02.2]} 28... axb4 {[%clk 0:02:26.3]}
29. Rxb4 {[%clk 0:01:03]} 29... Rd8 {[%clk 0:02:26.4]} 30. a4 {[%clk 0:00:55.9]}
30... Rd1+ {[%clk 0:02:24.7]} 31. Kc2 {[%clk 0:00:55]} 31... Rf1 {[%clk
0:02:25.4]} 32. f4 {[%clk 0:00:48.3]} 32... exf4 {[%clk 0:02:22.9]} 33. Kd3
{[%clk 0:00:47.2]} 33... Bd5 {[%clk 0:02:21.7]} 34. a5 {[%clk 0:00:35.4]} 34...
Bxg2 {[%clk 0:02:20.7]} 35. Ra4 {[%clk 0:00:31.5]} 35... Bc6 {[%clk 0:02:10.9]}
36. Ra3 {[%clk 0:00:30.6]} 36... f3 {[%clk 0:02:09.7]} 37. b4 {[%clk 0:00:27.8]}
37... f2 {[%clk 0:02:08.7]} 38. Ke3 {[%clk 0:00:22.6]} 38... f5 {[%clk
0:02:02.8]} 39. c4 {[%clk 0:00:17.3]} 39... Rc1 {[%clk 0:01:56.2]} 40. Kxf2
{[%clk 0:00:16.7]} 40... Rxc4 {[%clk 0:01:56.7]} 41. Rb3 {[%clk 0:00:13.3]}
41... Bb5 {[%clk 0:01:56.8]} 42. Ke3 {[%clk 0:00:11.9]} 42... Ke6 {[%clk
0:01:55.1]} 43. Ra3 {[%clk 0:00:09]} 43... Rxb4 {[%clk 0:01:54.9]} 44. a6 {[%clk
0:00:09.6]} 44... Ra4 {[%clk 0:01:54.5]} 45. Rxa4 {[%clk 0:00:07.6]} 45... Bxa4
{[%clk 0:01:55.4]} 46. a7 {[%clk 0:00:08]} 46... Bc6 {[%clk 0:01:55.8]} 47. Kf4
{[%clk 0:00:08.5]} 47... Kf6 {[%clk 0:01:55.3]} 48. h4 {[%clk 0:00:07.9]} 48...
h5 {[%clk 0:01:55.3]} 0-1

[Event "Early-Titled-Tuesday-Blitz-April-16-2024"]
[Site "Chess.com"]
[Date "2024.04.16"]
[Round "11"]
[White "Elnaz_Kaliakhmet"]
[Black "Caroexpert"]
[Result "0-1"]
[WhiteElo "2555"]
[BlackElo "2674"]
[TimeControl "180+1"]
[EndTime "10:10:52 PDT"]
[Termination "Caroexpert won by resignation"]

1. d4 {[%clk 0:03:00.9]} 1... d5 {[%clk 0:02:52.8]} 2. c4 {[%clk 0:03:00.6]}
2... e6 {[%clk 0:02:51.6]} 3. Nf3 {[%clk 0:03:00.6]} 3... a6 {[%clk 0:02:51.4]}
4. cxd5 {[%clk 0:02:59.6]} 4... exd5 {[%clk 0:02:52.3]} 5. Nc3 {[%clk
0:03:00.1]} 5... h6 {[%clk 0:02:48.5]} 6. Bf4 {[%clk 0:02:57]} 6... Nf6 {[%clk
0:02:44.7]} 7. e3 {[%clk 0:02:56.3]} 7... Bd6 {[%clk 0:02:43.7]} 8. Bxd6 {[%clk
0:02:54.5]} 8... Qxd6 {[%clk 0:02:39]} 9. Bd3 {[%clk 0:02:54.8]} 9... O-O {[%clk
0:02:38.2]} 10. O-O {[%clk 0:02:54.2]} 10... Bg4 {[%clk 0:02:32]} 11. h3 {[%clk
0:02:54.2]} 11... Bxf3 {[%clk 0:02:29.6]} 12. Qxf3 {[%clk 0:02:53.4]} 12... Nbd7
{[%clk 0:02:28.1]} 13. Rab1 {[%clk 0:02:52.4]} 13... c6 {[%clk 0:02:27.2]} 14.
b4 {[%clk 0:02:51]} 14... Rfe8 {[%clk 0:02:26.6]} 15. a4 {[%clk 0:02:47.6]}
15... b5 {[%clk 0:02:23.9]} 16. a5 {[%clk 0:02:36.3]} 16... Qe7 {[%clk
0:02:20.9]} 17. Rfc1 {[%clk 0:02:34.6]} 17... Ne4 {[%clk 0:02:17.5]} 18. Qe2
{[%clk 0:02:33.5]} 18... Nd6 {[%clk 0:02:17.2]} 19. Na2 {[%clk 0:02:31]} 19...
Nc4 {[%clk 0:02:17.1]} 20. Bxc4 {[%clk 0:02:29.7]} 20... bxc4 {[%clk 0:02:13.3]}
21. Nc3 {[%clk 0:02:28.9]} 21... Rab8 {[%clk 0:02:12.7]} 22. Qb2 {[%clk
0:02:26.2]} 22... Rb7 {[%clk 0:02:12.5]} 23. Na4 {[%clk 0:02:24.5]} 23... Reb8
{[%clk 0:02:12.6]} 24. Nc5 {[%clk 0:02:22]} 24... Nxc5 {[%clk 0:02:11.9]} 25.
dxc5 {[%clk 0:02:22.1]} 25... Qxc5 {[%clk 0:01:56.9]} 26. Qe5 {[%clk 0:02:09.5]}
26... Rxb4 {[%clk 0:01:02.8]} 27. Qxb8+ {[%clk 0:02:07.9]} 27... Rxb8 {[%clk
0:01:02]} 28. Rxb8+ {[%clk 0:02:07.2]} 28... Kh7 {[%clk 0:01:02.9]} 29. Rb6
{[%clk 0:02:06.5]} 29... Qa3 {[%clk 0:00:54.9]} 30. Rcb1 {[%clk 0:02:04.1]}
30... c5 {[%clk 0:00:50.9]} 31. Rd1 {[%clk 0:01:49.8]} 31... c3 {[%clk
0:00:45.7]} 32. Rxd5 {[%clk 0:01:23.8]} 32... c2 {[%clk 0:00:42]} 33. Rxa6
{[%clk 0:01:23.4]} 33... c1=Q+ {[%clk 0:00:40.4]} 34. Kh2 {[%clk 0:01:23.7]}
34... Qf1 {[%clk 0:00:31.3]} 35. Rf5 {[%clk 0:01:22]} 35... Qxa6 {[%clk
0:00:30.4]} 36. Rxf7 {[%clk 0:01:20.5]} 36... Qd6+ {[%clk 0:00:28.2]} 37. g3
{[%clk 0:01:19.4]} 37... Qxa5 {[%clk 0:00:28.6]} 38. h4 {[%clk 0:01:18.5]} 38...
c4 {[%clk 0:00:28.9]} 39. Rf4 {[%clk 0:01:17.3]} 39... Qxf4 {[%clk 0:00:27.9]}
40. exf4 {[%clk 0:01:16.2]} 40... c3 {[%clk 0:00:28.8]} 41. Kg2 {[%clk
0:01:12.6]} 41... c2 {[%clk 0:00:29.1]} 42. Kh2 {[%clk 0:01:12]} 42... c1=Q
{[%clk 0:00:29.5]} 0-1